bitfinex/quotes_SOLUSD_20250527
["timestamp","ask_amount","ask_price","bid_price","bid_amount"]
[1748330219751,27.72136791,174.28,174.27,34.42]
[1748330224903,38.60290281,174.29,174.27,34.42]
[1748330225197,12.60290281,174.28,174.27,34.42]
[1748330226388,6.02340522,174.32,174.27,34.42]
[1748330226576,3.2718423,174.31,174.27,47.02290281]
[1748330226895,1.72117039,174.3,174.27,47.02290281]
[1748330228898,1.72107165,174.31,174.27,47.02290281]
[1748330229789,6.02375078,174.31,174.27,47.02290281]
[1748330231703,12.60290281,174.29,174.27,34.42]
[1748330231891,12.60290281,174.28,174.26,40.18]
[1748330232080,12.60290281,174.27,174.26,74.6]
[1748330232399,12.60290281,174.27,174.26,40.18]
[1748330232704,12.60290281,174.28,174.26,74.6]
[1748330234315,14.32436949,174.27,174.26,74.6]
[1748330234483,14.32436949,174.27,174.26,40.18]
[1748330238788,1.72146668,174.27,174.26,40.18]
[1748330240410,14.32436949,174.27,174.26,40.18]
[1748330241111,14.32436949,174.27,174.26,74.6]
[1748330244515,27.23536965,174.27,174.21,40.04]
[1748330244716,12.60290281,174.22,174.17,82.6]
[1748330245014,12.60290281,174.21,174.18,34.42]
[1748330245198,12.60290281,174.22,174.18,34.42]
[1748330245391,12.60290281,174.23,174.18,47.02290281]
[1748330245808,1.72196073,174.22,174.18,47.02290281]
[1748330246439,14.32486354,174.22,174.18,34.42]
[1748330246597,12.60290281,174.21,174.19,34.42]
[1748330246797,12.60290281,174.2,174.19,34.42]
[1748330247790,1.7222573,174.19,174.17,122.64]
[1748330248007,1.7222573,174.19,174.18,34.42]
[1748330248427,1.7222573,174.19,174.17,122.64]
[1748330248647,14.32516011,174.19,174.18,34.42]
[1748330249915,14.32516011,174.19,174.17,122.64]
[1748330250114,14.32516011,174.19,174.18,34.42]
[1748330251617,6.02686257,174.22,174.18,34.42]
[1748330251828,12.60290281,174.19,174.18,34.42]
[1748330252020,12.60290281,174.2,174.18,34.42]
[1748330253613,12.60290281,174.19,174.18,34.42]
[1748330253816,14.32516011,174.19,174.18,34.42]
[1748330255210,14.32516011,174.19,174.17,40.04]
[1748330255412,12.60290281,174.18,174.17,40.04]
[1748330255610,12.60290281,174.18,174.17,74.46]
[1748330257125,14.32525899,174.18,174.17,74.46]
[1748330261625,14.32525899,174.18,174.17,40.04]
[1748330261926,14.32525899,174.18,174.17,74.46]
[1748330262925,14.32525899,174.18,174.17,40.04]
[1748330263131,14.32525899,174.18,174.17,74.46]
[1748330263646,18.63114944,174.18,174.15,34.42]
[1748330263929,12.60290281,174.16,174.15,34.42]
[1748330264732,12.60290281,174.16,174.12,39.9]
[1748330265029,1.7227518,174.14,174.13,34.44]
[1748330266136,1.72245507,174.17,174.13,47.04290281]
[1748330266617,14.32535788,174.17,174.13,34.44]
[1748330267607,12.60290281,174.16,174.13,34.44]
[1748330268330,1.72265288,174.15,174.13,34.44]
[1748330269733,14.32555569,174.15,174.13,34.44]
[1748330269927,12.60290281,174.14,174.12,39.9]
[1748330270230,14.32555569,174.15,174.13,34.44]
[1748330270429,1.72265288,174.15,174.13,34.44]
[1748330272830,1.72255397,174.16,174.13,34.44]
[1748330275330,1.72255397,174.16,174.12,39.9]
[1748330275331,18.63184171,174.16,174.12,39.9]
[1748330275522,12.60290281,174.15,174.13,34.44]
[1748330276735,12.60290281,174.15,174.14,34.44]
[1748330277534,14.32555569,174.15,174.14,34.44]
[1748330286609,14.32555569,174.15,174.12,39.9]
[1748330286824,14.32555569,174.15,174.13,34.44]
[1748330288216,14.32565461,174.14,174.13,34.44]
[1748330288713,40.32565461,174.14,174.13,34.44]
[1748330288932,40.32565461,174.14,174.12,39.9]
[1748330289138,27.7227518,174.14,174.13,34.44]
[1748330290422,40.32565461,174.14,174.13,34.44]
[1748330292350,1.72245507,174.17,174.13,47.04290281]
[1748330292943,14.32535788,174.17,174.13,34.44]
[1748330294045,18.63149556,174.17,174.13,34.44]
[1748330294250,12.60290281,174.14,174.12,39.9]
[1748330294425,12.60290281,174.14,174.13,34.44]
[1748330294844,38.60290281,174.14,174.13,34.44]
[1748330295551,38.60290281,174.14,174.12,39.9]
[1748330295732,38.60290281,174.14,174.13,34.44]
[1748330295931,40.32565461,174.14,174.13,34.44]
[1748330296653,14.32565461,174.14,174.13,34.44]
[1748330298853,1.7227518,174.14,174.13,34.44]
[1748330299460,1.72265288,174.15,174.13,34.44]
[1748330300050,7.56511836,174.17,174.13,34.44]
[1748330300258,12.60290281,174.14,174.13,34.44]
[1748330300771,12.60290281,174.14,174.12,39.9]
[1748330300944,12.60290281,174.13,174.12,39.9]
[1748330301147,12.60290281,174.13,174.12,74.34]
[1748330301555,14.32575355,174.13,174.12,74.34]
[1748330303970,14.32575355,174.13,174.12,39.9]
[1748330304168,14.32575355,174.13,174.12,74.34]
[1748330305075,14.32575355,174.13,174.12,39.9]
[1748330305586,14.32575355,174.13,174.12,74.34]
[1748330305873,18.6328804,174.13,174.11,34.44]
[1748330306039,18.6328804,174.13,174.07,39.74]
[1748330306040,6.03067025,174.11,174.07,39.74]
[1748330306235,12.60290281,174.09,174.08,34.44]
[1748330307266,14.3261494,174.09,174.08,34.44]
[1748330309672,1.72324659,174.09,174.08,34.44]
[1748330310674,4.30762161,174.11,174.08,34.44]
[1748330310973,12.60290281,174.1,174.08,34.44]
[1748330311661,1.72324659,174.09,174.08,34.44]
[1748330313670,4.30762161,174.11,174.08,34.44]
[1748330313867,12.60290281,174.1,174.08,34.44]
[1748330314456,4.30762161,174.11,174.08,34.44]
[1748330315559,12.60290281,174.1,174.08,34.44]
[1748330316472,1.72324659,174.09,174.08,34.44]
[1748330321280,6.03067025,174.11,174.08,34.44]
[1748330331554,1.72285074,174.13,174.08,47.04290281]
[1748330331758,14.32575355,174.13,174.08,47.04290281]
[1748330334890,4.30705907,174.14,174.08,47.04290281]
[1748330335133,12.60290281,174.13,174.08,47.04290281]
[1748330336810,1.72294968,174.12,174.08,47.04290281]
[1748330337024,14.32585249,174.12,174.08,34.44]
[1748330337395,18.63322671,174.12,174.08,34.44]
[1748330337602,12.60290281,174.11,174.08,34.44]
[1748330338817,1.72304864,174.11,174.08,34.44]
[1748330341902,1.72304864,174.11,174.08,47.04290281]
[1748330343106,1.72304864,174.11,174.08,41.41481481]
[1748330344011,1.72294968,174.12,174.09,12.60290281]
[1748330344196,15.86188349,174.14,174.08,28.811912]
[1748330344197,3.25898068,174.14,174.11,12.60290281]
[1748330344398,1.72265288,174.15,174.13,12.60290281]
[1748330344600,1.72265288,174.15,174.13,52.20290281]
[1748330346109,1.72265288,174.15,174.14,12.60290281]
[1748330346297,1.72265288,174.15,174.13,39.6]
[1748330346911,14.32555569,174.15,174.13,39.6]
[1748330347619,1.72265288,174.15,174.13,39.6]
[1748330348504,14.32555569,174.15,174.13,39.6]
[1748330350321,14.32555569,174.15,174.14,34.44]
[1748330351890,4.98156265,174.16,174.14,47.04290281]
[1748330352108,3.25898068,174.16,174.15,12.60290281]
[1748330352498,1.7224772,174.17,174.15,12.60290281]
[1748330352820,1.7222573,174.19,174.16,12.60290281]
[1748330352997,1.7222573,174.19,174.17,12.60290281]
[1748330353193,4.98117084,174.2,174.18,47.04290281]
[1748330353421,4.98117084,174.2,174.13,65.6]
[1748330353422,1.72206096,174.21,174.19,86.48290281]
[1748330353602,9.0823979,174.22,174.2,86.48290281]
[1748330354032,9.0823979,174.22,174.2,73.88]
[1748330354938,1.72198809,174.22,174.2,73.88]
[1748330355141,1.7218619,174.23,174.2,73.88]
[1748330356055,1.7218619,174.23,174.2,86.48290281]
[1748330357369,1.72176308,174.24,174.2,86.48290281]
[1748330358865,1.72176308,174.24,174.2,73.88]
[1748330359037,1.72176308,174.24,174.2,86.48290281]
[1748330360552,1.72176308,174.24,174.21,12.60290281]
[1748330362068,1.72166427,174.25,174.21,12.60290281]
[1748330362271,14.32456708,174.25,174.2,86.48290281]
[1748330362866,18.62872776,174.25,174.2,86.48290281]
[1748330363369,18.62872776,174.25,174.2,73.88]
[1748330364752,6.02582495,174.25,174.2,86.48290281]
[1748330364966,18.62872776,174.25,174.2,86.48290281]
[1748330365159,18.62872776,174.25,174.2,73.88]
[1748330365348,12.60290281,174.23,174.2,39.44]
[1748330365549,12.60290281,174.23,174.21,34.42]
[1748330366750,1.72196073,174.22,174.21,34.42]
[1748330368573,14.32486354,174.22,174.21,34.42]
[1748330370581,1.72196073,174.22,174.21,34.42]
[1748330372275,1.72196073,174.22,174.2,39.44]
[1748330372580,1.72196073,174.22,174.21,34.42]
[1748330373978,14.32486354,174.22,174.21,34.42]
[1748330375882,14.32486354,174.22,174.2,39.44]
[1748330376079,12.60290281,174.21,174.2,39.44]
[1748330376301,12.60290281,174.21,174.2,73.86]
[1748330377986,14.32496239,174.21,174.2,73.86]
[1748330380088,14.32496239,174.21,174.2,39.44]
[1748330380273,14.32496239,174.21,174.2,73.86]
[1748330382284,14.32496239,174.21,174.2,39.44]
[1748330382869,40.32496239,174.21,174.2,39.44]
[1748330383471,14.32496239,174.21,174.2,39.44]
[1748330385595,14.32496239,174.21,174.2,73.86]
[1748330385774,14.32496239,174.21,174.2,39.44]
[1748330386096,14.32496239,174.21,174.2,73.86]
[1748330389077,1.72196073,174.22,174.2,73.86]
[1748330389395,12.60290281,174.21,174.2,73.86]
[1748330391707,14.32496239,174.21,174.2,73.86]
[1748330391896,14.32496239,174.21,174.2,39.44]
[1748330392084,26.9278652,174.21,174.19,0.06060559]
[1748330392289,43.85545448,174.2,174.19,0.06060559]
[1748330392483,69.85545448,174.2,174.19,0.06060559]
[1748330393192,73.10547279,174.2,174.15,73.68]
[1748330393395,12.60290281,174.16,174.15,73.68]
[1748330393800,14.32545678,174.16,174.15,39.26]
[1748330394308,18.63184171,174.16,174.12,82.6]
[1748330394514,12.60290281,174.13,174.1,39.26]
[1748330394690,12.60290281,174.11,174.1,39.26]
[1748330394891,12.60290281,174.11,174.1,73.7]
[1748330395808,14.32595145,174.11,174.1,73.7]
[1748330399710,14.32595145,174.11,174.1,39.26]
[1748330400016,14.32595145,174.11,174.1,73.7]
[1748330407924,1.72304864,174.11,174.1,73.7]
[1748330408628,14.32595145,174.11,174.1,73.7]
[1748330413460,1.72255397,174.16,174.1,73.7]
[1748330413666,12.60290281,174.14,174.1,73.7]
[1748330415053,1.72285074,174.13,174.1,73.7]
[1748330416530,12.60290281,174.12,174.1,73.7]
[1748330417033,12.60290281,174.11,174.1,73.7]
[1748330418461,14.32595145,174.11,174.1,73.7]
[1748330418960,14.32595145,174.11,174.1,39.26]
[1748330419130,14.32595145,174.11,174.1,73.7]
[1748330421364,14.32595145,174.11,174.1,39.26]
[1748330421559,26.92885426,174.11,174.1,39.26]
[1748330421756,31.23647587,174.11,174.05,39.14]
[1748330421963,12.60290281,174.06,174.05,39.14]
[1748330422271,12.60290281,174.06,174.05,73.58]
[1748330422665,14.32644641,174.06,174.05,73.58]
[1748330424267,12.60290281,174.09,174.05,73.58]
[1748330424469,12.60290281,174.12,174.07,18.94930281]
[1748330424649,12.60290281,174.11,174.08,34.44]
[1748330424849,1.72314761,174.1,174.08,34.44]
[1748330427371,1.72314761,174.1,174.09,39.14]
[1748330433090,1.72307387,174.11,174.09,39.14]
[1748330434986,6.02946147,174.15,174.1,12.60290281]
[1748330435172,1.72265288,174.15,174.11,12.60290281]
[1748330435374,1.72265288,174.15,174.12,34.44]
[1748330435876,14.32555569,174.15,174.12,34.44]
[1748330437293,1.72265288,174.15,174.12,34.44]
[1748330438593,14.32555569,174.15,174.12,34.44]
[1748330439198,12.60290281,174.14,174.12,34.44]
[1748330439373,12.60290281,174.13,174.12,34.44]
[1748330440589,1.72294968,174.12,174.09,39.14]
[1748330440782,12.60290281,174.11,174.09,39.14]
[1748330440976,12.60290281,174.1,174.09,39.14]
[1748330441176,12.60290281,174.1,174.09,73.58]
[1748330442991,14.32605042,174.1,174.09,73.58]
[1748330443195,12.60290281,174.12,174.09,73.58]
[1748330443397,14.32575355,174.13,174.09,73.58]
[1748330443778,1.72285074,174.13,174.09,86.18290281]
[1748330444675,14.32575355,174.13,174.09,86.18290281]
[1748330445500,14.32575355,174.13,174.09,73.58]
[1748330448804,14.32575355,174.13,174.09,86.18290281]
[1748330450294,1.72285074,174.13,174.09,86.18290281]
[1748330452525,14.32575355,174.13,174.09,73.58]
[1748330453301,12.60290281,174.12,174.09,73.58]
[1748330453803,1.72304864,174.11,174.09,73.58]
[1748330455620,1.72297027,174.12,174.09,73.58]
[1748330456000,14.32565461,174.14,174.09,86.18290281]
[1748330457303,14.32565461,174.14,174.09,73.58]
[1748330457504,1.7227518,174.14,174.09,73.58]
[1748330457726,1.72245507,174.17,174.12,12.60290281]
[1748330457904,1.72245507,174.17,174.14,12.60290281]
[1748330458105,1.72245507,174.17,174.15,73.42]
[1748330459403,14.32528913,174.18,174.15,73.42]
[1748330459609,1.72238632,174.18,174.15,73.42]
[1748330460123,14.32528913,174.18,174.15,73.42]
[1748330460833,12.60290281,174.16,174.15,73.42]
[1748330461228,18.63184171,174.16,174.09,6.4176]
[1748330461422,12.60290281,174.13,174.1,38.98]
[1748330461621,12.60290281,174.13,174.11,34.44]
[1748330462711,12.60290281,174.13,174.11,21.44]
[1748330463211,1.72294968,174.12,174.11,21.44]
[1748330464024,14.32577053,174.13,174.11,21.44]
[1748330464717,1.72286772,174.13,174.11,21.44]
[1748330464924,1.72257003,174.16,174.12,12.60290281]
[1748330465521,1.72235618,174.18,174.15,12.60290281]
[1748330465827,12.60290281,174.2,174.16,73.42]
[1748330467056,12.60290281,174.18,174.16,73.42]
[1748330467241,1.72245507,174.17,174.16,73.42]
[1748330468837,4.30514895,174.21,174.16,73.42]
[1748330469027,1.72215843,174.2,174.16,86.02290281]
[1748330469551,14.32506124,174.2,174.16,73.42]
[1748330473251,1.72215843,174.2,174.16,86.02290281]
[1748330474355,12.60290281,174.22,174.17,12.60290281]
[1748330475147,12.60290281,174.19,174.16,73.42]
[1748330476444,1.72235618,174.18,174.16,73.42]
[1748330478058,1.72196073,174.22,174.16,86.02290281]
[1748330478252,12.60290281,174.21,174.16,86.02290281]
[1748330479273,1.72215843,174.2,174.16,86.02290281]
[1748330479658,1.72215843,174.2,174.16,73.42]
[1748330479865,1.72215843,174.2,174.16,86.02290281]
[1748330480367,14.32506124,174.2,174.16,73.42]
[1748330482260,1.72215843,174.2,174.16,86.02290281]
[1748330482453,1.72176308,174.24,174.17,12.60290281]
[1748330482655,12.60290281,174.23,174.18,12.60290281]
[1748330482866,12.60290281,174.22,174.17,12.60290281]
[1748330484170,1.72205958,174.21,174.17,12.60290281]
[1748330484553,14.32496239,174.21,174.16,86.02290281]
[1748330484753,1.72205958,174.21,174.17,12.60290281]
[1748330485152,1.72205958,174.21,174.16,86.02290281]
[1748330485352,14.32496239,174.21,174.16,86.02290281]
[1748330486461,1.72205958,174.21,174.17,12.60290281]
[1748330486662,1.72195889,174.23,174.2,12.60290281]
[1748330486863,1.72195889,174.23,174.21,34.42]
[1748330487065,4.97411353,174.25,174.22,51.42290281]
[1748330487258,4.97411353,174.25,174.22,38.82]
[1748330487457,12.60290281,174.24,174.22,38.82]
[1748330487859,12.60290281,174.23,174.22,38.82]
[1748330488073,12.60290281,174.23,174.22,73.24]
[1748330488276,14.32476471,174.23,174.22,73.24]
[1748330492191,1.7218619,174.23,174.22,73.24]
[1748330492365,12.60290281,174.25,174.22,73.24]
[1748330493397,12.60290281,174.24,174.22,73.24]
[1748330493570,12.60290281,174.25,174.22,73.24]
[1748330493896,14.32446828,174.26,174.22,73.24]
[1748330494493,12.60290281,174.25,174.22,73.24]
[1748330495776,14.32462423,174.25,174.22,73.24]
[1748330496579,1.72172142,174.25,174.22,73.24]
[1748330497179,1.72172142,174.25,174.22,85.84290281]
[1748330497477,12.60290281,174.27,174.22,85.84290281]
[1748330498387,12.60290281,174.28,174.23,12.60290281]
[1748330499962,12.60290281,174.29,174.23,12.60290281]
[1748330500175,4.3030817,174.3,174.23,12.60290281]
[1748330500376,1.72107165,174.31,174.25,12.60290281]
[1748330500578,14.32397446,174.31,174.26,34.42]
[1748330500976,12.60290281,174.3,174.26,34.42]
[1748330501677,6.02375078,174.31,174.26,34.42]
[1748330501678,12.60290281,174.29,174.26,34.42]
[1748330502204,6.02375078,174.31,174.26,34.42]
[1748330502498,12.60290281,174.29,174.26,34.42]
[1748330503502,1.72136791,174.28,174.26,34.42]
[1748330503895,1.72117039,174.3,174.26,34.42]
[1748330504085,1.69222568,174.3,174.26,34.42]
[1748330504410,14.29512849,174.3,174.26,34.42]
[1748330504779,12.60290281,174.27,174.2,8.1295]
[1748330504984,20.10375447,174.3,174.24,38.68]
[1748330505194,20.10375447,174.3,174.24,73.1]
[1748330505591,20.10375447,174.3,174.24,38.68]
[1748330505901,20.10375447,174.3,174.24,73.1]
[1748330506103,12.60290281,174.25,174.24,73.1]
[1748330507500,28.70960644,174.3,174.24,73.1]
[1748330507711,12.60290281,174.25,174.24,73.1]
[1748330509692,14.32456708,174.25,174.24,73.1]
[1748330509890,14.32456708,174.25,174.24,38.68]
[1748330511114,18.62872776,174.25,174.16,82.6]
[1748330511292,12.60290281,174.21,174.2,38.68]
[1748330511491,12.60290281,174.21,174.2,73.1]
[1748330511792,12.60290281,174.23,174.2,73.1]
[1748330512214,12.60290281,174.22,174.2,73.1]
[1748330513512,14.32492451,174.22,174.2,73.1]
[1748330513995,1.72176308,174.24,174.2,73.1]
[1748330514203,14.32466589,174.24,174.2,73.1]
[1748330516615,12.60290281,174.25,174.21,31.25255167]
[1748330516820,12.60290281,174.26,174.21,31.25255167]
[1748330517709,12.60290281,174.25,174.21,18.64964886]
[1748330517918,12.60290281,174.23,174.2,73.1]
[1748330518093,12.60290281,174.23,174.2,38.68]
[1748330518292,12.60290281,174.23,174.21,34.42]
[1748330518493,4.30366672,174.27,174.21,34.42]
[1748330518692,12.60290281,174.25,174.21,34.42]
[1748330520116,1.72176308,174.24,174.21,34.42]
[1748330520419,1.72156547,174.26,174.22,12.60290281]
[1748330522117,12.60290281,174.3,174.25,31.25255167]
[1748330522303,12.60290281,174.3,174.26,73.1]
[1748330523126,14.3240732,174.3,174.26,73.1]
[1748330524431,14.3240732,174.3,174.27,12.60290281]
[1748330524432,1.72117039,174.3,174.27,12.60290281]
[1748330524599,1.72117039,174.3,174.26,73.1]
[1748330525826,14.3240732,174.3,174.26,73.1]
[1748330526126,12.60290281,174.27,174.26,38.68]
[1748330526455,12.60290281,174.27,174.26,73.1]
[1748330526632,6.02409637,174.3,174.26,73.1]
[1748330526814,12.60290281,174.28,174.26,73.1]
[1748330527938,12.60290281,174.29,174.26,73.1]
[1748330528932,12.60290281,174.3,174.26,73.1]
[1748330529128,6.02340522,174.32,174.26,73.1]
[1748330529343,12.60290281,174.29,174.26,73.1]
[1748330530142,6.02340522,174.32,174.27,12.60290281]
[1748330530319,14.32387573,174.32,174.27,12.60290281]
[1748330530511,12.60290281,174.28,174.26,38.68]
[1748330530712,12.60290281,174.27,174.26,38.68]
[1748330530927,12.60290281,174.28,174.26,73.1]
[1748330531313,12.60290281,174.28,174.27,34.42]
[1748330532236,14.32427072,174.28,174.27,34.42]
[1748330532526,1.72107165,174.31,174.27,34.42]
[1748330532736,14.32397446,174.31,174.27,34.42]
[1748330532938,1.72107165,174.31,174.27,34.42]
[1748330533526,14.32397446,174.31,174.27,34.42]
[1748330533730,12.60290281,174.3,174.27,34.42]
[1748330534221,6.02313897,174.33,174.27,34.42]
[1748330534440,12.60290281,174.31,174.27,34.42]
[1748330534620,12.60290281,174.29,174.27,34.42]
[1748330535626,12.60290281,174.28,174.27,34.42]
[1748330535827,12.60290281,174.28,174.26,38.68]
[1748330536131,6.02313897,174.33,174.27,34.42]
[1748330536334,6.02313897,174.33,174.26,38.68]
[1748330536626,6.02313897,174.33,174.27,34.42]
[1748330537038,9.28012893,174.33,174.27,34.42]
[1748330537406,12.60290281,174.28,174.27,34.42]
[1748330538110,14.32427072,174.28,174.27,34.42]
[1748330540229,14.32427072,174.28,174.26,38.68]
[1748330540424,14.32427072,174.28,174.27,34.42]
[1748330540619,1.72136791,174.28,174.27,34.42]
[1748330540818,12.60290281,174.29,174.27,34.42]
[1748330541915,14.32420439,174.29,174.27,34.42]
[1748330542113,1.72130158,174.29,174.27,34.42]
[1748330542522,14.32420439,174.29,174.27,34.42]
[1748330542928,14.31066461,174.29,174.27,34.42]
[1748330543436,12.58936303,174.28,174.27,34.42]
[1748330544137,14.31073094,174.28,174.27,34.42]
[1748330544633,14.31073094,174.28,174.26,38.68]
[1748330544847,1.72136791,174.28,174.27,34.42]
[1748330545017,6.0232389,174.33,174.27,34.42]
[1748330545330,14.31023723,174.33,174.28,18.64964886]
[1748330546037,12.58936303,174.33,174.28,18.64964886]
[1748330547331,14.31028018,174.33,174.28,18.64964886]
[1748330551924,12.58936303,174.32,174.28,18.64964886]
[1748330553135,12.58936303,174.31,174.29,60.4]
[1748330553713,12.58936303,174.3,174.27,18.64964886]
[1748330553915,1.72126914,174.29,174.28,34.4]
[1748330554417,14.31063217,174.29,174.28,34.4]
[1748330554821,14.31056645,174.3,174.28,34.4]
[1748330557237,14.30934768,174.3,174.28,34.4]
[1748330559538,12.58814426,174.29,174.26,38.68]
[1748330559836,12.58814426,174.28,174.27,34.4]
[1748330560816,12.58814426,174.29,174.27,34.4]
[1748330561551,4.30218551,174.33,174.27,34.4]
[1748330561750,12.58814426,174.29,174.27,34.4]
[1748330562128,12.58814426,174.29,174.28,34.4]
[1748330562849,14.3094134,174.29,174.26,38.68]
[1748330563050,14.3094134,174.29,174.27,34.4]
[1748330564142,4.30218551,174.33,174.27,34.4]
[1748330564443,12.58814426,174.29,174.27,34.4]
[1748330564744,12.58814426,174.3,174.27,34.4]
[1748330565548,12.58814426,174.29,174.27,34.4]
[1748330568120,14.30949793,174.29,174.27,34.4]
[1748330569831,1.72135367,174.29,174.27,34.4]
[1748330571323,1.72135367,174.29,174.28,38.48]
[1748330573249,1.72135367,174.29,174.28,72.88]
[1748330574254,1.72120686,174.3,174.28,72.88]
[1748330574641,1.72110579,174.31,174.28,72.88]
[1748330574833,3.25698996,174.32,174.28,91.20603117]
[1748330575147,3.25698996,174.32,174.29,12.58814426]
[1748330575851,1.72087616,174.33,174.29,12.58814426]
[1748330578744,14.30902042,174.33,174.29,12.58814426]
[1748330580644,14.30895268,174.34,174.29,12.58814426]
[1748330580862,14.30895268,174.34,174.3,18.64964886]
[1748330581651,1.72069618,174.35,174.31,12.58814426]
[1748330582952,12.58814426,174.35,174.3,31.23779312]
[1748330585030,1.72077549,174.34,174.3,31.23779312]
[1748330586158,1.72057811,174.36,174.3,31.23779312]
[1748330586353,12.58814426,174.35,174.3,31.23779312]
[1748330587157,1.72077549,174.34,174.3,31.23779312]
[1748330588033,4.97749079,174.37,174.32,12.58814426]
[1748330588338,4.97749079,174.37,174.33,34.4]
[1748330588339,17.56563505,174.37,174.33,34.4]
[1748330588552,14.30864509,174.37,174.34,38.46]
[1748330590856,12.58814426,174.36,174.34,38.46]
[1748330592565,6.02108143,174.39,174.34,38.46]
[1748330592738,12.58814426,174.37,174.34,38.46]
[1748330594075,1.72057811,174.36,174.34,38.46]
[1748330597770,6.02108143,174.39,174.34,38.46]
[1748330598065,12.58814426,174.36,174.34,38.46]
[1748330598454,6.02108143,174.39,174.34,38.46]
[1748330598767,12.58814426,174.37,174.34,38.46]
[1748330599459,1.72057811,174.36,174.34,38.46]
[1748330602869,4.30079931,174.39,174.34,38.46]
[1748330603067,8.05040136,174.37,174.34,38.46]
[1748330604672,1.72057811,174.36,174.34,38.46]
[1748330607166,8.05040136,174.35,174.34,38.46]
[1748330607677,8.05040136,174.35,174.34,72.86]
[1748330608785,9.77107815,174.35,174.34,38.46]
[1748330609107,1.72067679,174.35,174.34,38.46]
[1748330609259,9.77107815,174.35,174.34,38.46]
[1748330611991,1.72060432,174.36,174.34,38.46]
[1748330613076,1.72047944,174.37,174.34,38.46]
[1748330614885,4.30079931,174.39,174.34,38.46]
[1748330615467,12.57816304,174.38,174.34,38.46]
[1748330616517,1.72047944,174.37,174.34,38.46]
[1748330616788,14.29864248,174.37,174.34,38.46]
[1748330617198,1.72047944,174.37,174.34,38.46]
[1748330618593,1.72018348,174.4,174.34,38.46]
[1748330618978,14.29834652,174.4,174.35,12.57816304]
[1748330619971,12.57816304,174.39,174.34,38.46]
[1748330620173,12.57816304,174.39,174.34,51.03816304]
[1748330620472,12.57816304,174.37,174.34,38.46]
[1748330620680,12.57816304,174.35,174.27,8.2556]
[1748330620893,1.72057811,174.36,174.33,38.28]
[1748330621409,6.02202339,174.36,174.33,38.28]
[1748330622075,12.57816304,174.34,174.33,38.28]
[1748330622477,6.02202339,174.36,174.33,38.28]
[1748330622708,14.29893853,174.34,174.33,38.28]
[1748330627774,1.72077549,174.34,174.33,38.28]
[1748330628102,14.29893853,174.34,174.33,38.28]
[1748330628491,1.72077549,174.34,174.33,38.28]
[1748330628790,14.29885118,174.35,174.33,38.28]
[1748330629414,1.72068814,174.35,174.33,38.28]
[1748330629582,14.29885118,174.35,174.33,38.28]
[1748330630396,3.25698996,174.38,174.33,50.85816304]
[1748330630397,1.72047944,174.37,174.33,50.85816304]
[1748330630598,1.72047944,174.37,174.34,31.2278119]
[1748330630783,1.72047944,174.37,174.35,34.4]
[1748330631109,12.57816304,174.36,174.35,34.4]
[1748330632378,14.29874115,174.36,174.35,34.4]
[1748330632783,1.72028212,174.39,174.35,34.4]
[1748330632977,12.57816304,174.37,174.35,34.4]
[1748330633815,1.72028212,174.39,174.35,34.4]
[1748330633982,1.72057811,174.36,174.35,34.4]
[1748330634508,1.72049814,174.37,174.35,34.4]
[1748330635101,1.72038133,174.38,174.35,34.4]
[1748330636715,4.30059281,174.4,174.35,46.97816304]
[1748330636918,16.87875585,174.4,174.35,46.97816304]
[1748330637807,18.59893933,174.4,174.35,46.97816304]
[1748330638310,14.29834652,174.4,174.35,46.97816304]
[1748330640124,6.01995184,174.42,174.37,12.57816304]
[1748330640290,18.59811488,174.42,174.37,12.57816304]
[1748330641421,18.59811488,174.42,174.36,18.64964886]
[1748330641422,12.57816304,174.41,174.36,18.64964886]
[1748330641722,12.57816304,174.4,174.36,18.64964886]
[1748330641939,12.57816304,174.41,174.36,18.64964886]